fUSD/lending_fUSD_20260701
["ID","MTS","AMOUNT","RATE_DAILY","PERIOD"]
[426818089,1782888632000,-151.0,0.00015708,2]
[426818103,1782888632000,-150.0,0.00015709,2]
[426818101,1782888632000,-31.69851911,0.00015708,2]
[426818107,1782888632000,-152.0,0.00015709,2]
[426818126,1782888632000,-1294.39006258,0.0001587,2]
[426818129,1782888632000,-500.0,0.0001587,2]
[426818124,1782888632000,-151.0,0.0001587,2]
[426818122,1782888632000,-150.0,0.0001587,2]
[426818120,1782888632000,-76.72752973,0.0001587,2]
[426818105,1782888632000,-151.0,0.00015709,2]
[426818111,1782888632000,-83.48798279,0.00015869,2]
[426818117,1782888632000,-74.27247027,0.0001587,2]
[426818109,1782888632000,-127.66508295,0.00015869,2]
[426818113,1782888632000,-151.0,0.0001587,2]
[426818115,1782888632000,-152.0,0.0001587,2]
[426818155,1782888637000,-4.07968741,0.0001587,2]
[426818154,1782888637000,-1326.18193742,0.0001587,2]
[426818173,1782888638000,-500.0,0.00016438,2]
[426818172,1782888638000,-500.0,0.00016438,2]
[426818176,1782888638000,-500.0,0.00016438,2]
[426818174,1782888638000,-500.0,0.00016438,2]
[426818175,1782888638000,-500.0,0.00016438,2]
[426818182,1782888638000,-500.0,0.00016438,2]
[426818180,1782888638000,-500.0,0.00016438,2]
[426818183,1782888638000,-500.0,0.00016438,2]
[426818184,1782888638000,-500.0,0.00016438,2]
[426818185,1782888638000,-500.0,0.00016438,2]
[426818170,1782888638000,-500.0,0.00016438,2]
[426818178,1782888638000,-500.0,0.00016438,2]
[426818171,1782888638000,-500.0,0.00016438,2]
[426818160,1782888638000,-4543.65328478,0.0001587,2]
[426818169,1782888638000,-500.0,0.00016438,2]
[426818166,1782888638000,-500.0,0.00016438,2]
[426818167,1782888638000,-500.0,0.00016438,2]
[426818165,1782888638000,-186.8,0.00016438,2]
[426818188,1782888638000,-500.0,0.00016438,2]
[426818161,1782888638000,-183.51803918,0.00016437,2]
[426818164,1782888638000,-209.13207449,0.00016437,2]
[426818163,1782888638000,-459.60419626,0.00016437,2]
[426818162,1782888638000,-200.41541372,0.00016437,2]
[426818159,1782888638000,-824.92549797,0.0001587,2]
[426818157,1782888638000,-2481.46997733,0.0001587,2]
[426818158,1782888638000,-720.42121725,0.0001587,2]
[426818156,1782888638000,-1165.45033526,0.0001587,2]
[426818168,1782888638000,-500.0,0.00016438,2]
[426818190,1782888638000,-500.0,0.00016438,2]
[426818186,1782888638000,-500.0,0.00016438,2]
[426818189,1782888638000,-500.0,0.00016438,2]
[426818218,1782888638000,-929.73104821,0.00017586,2]
[426818216,1782888638000,-1500.0,0.00017422,2]
[426818217,1782888638000,-13947.8295,0.00017486,2]
[426818212,1782888638000,-353.70469852,0.00016857,2]
[426818215,1782888638000,-1842.9001158,0.00017279,2]
[426818187,1782888638000,-500.0,0.00016438,2]
[426818214,1782888638000,-2500.0,0.00017279,2]
[426818209,1782888638000,-500.0,0.00016438,2]
[426818211,1782888638000,-171.67,0.00016712,2]
[426818210,1782888638000,-500.0,0.00016438,2]
[426818213,1782888638000,-502.0,0.00017014,2]
[426818208,1782888638000,-500.0,0.00016438,2]
[426818207,1782888638000,-500.0,0.00016438,2]
[426818204,1782888638000,-500.0,0.00016438,2]
[426818206,1782888638000,-200.0,0.00016438,2]
[426818198,1782888638000,-500.0,0.00016438,2]
[426818203,1782888638000,-500.0,0.00016438,2]
[426818199,1782888638000,-500.0,0.00016438,2]
[426818200,1782888638000,-500.0,0.00016438,2]
[426818201,1782888638000,-500.0,0.00016438,2]
[426818202,1782888638000,-500.0,0.00016438,2]
[426818194,1782888638000,-500.0,0.00016438,2]
[426818196,1782888638000,-500.0,0.00016438,2]
[426818197,1782888638000,-500.0,0.00016438,2]
[426818195,1782888638000,-500.0,0.00016438,2]
[426818191,1782888638000,-500.0,0.00016438,2]
[426818192,1782888638000,-500.0,0.00016438,2]
[426818193,1782888638000,-150.31232515,0.00016438,2]
[426818205,1782888638000,-500.0,0.00016438,2]
[426818234,1782888645000,-21183.21136039,0.00017586,2]
[426818236,1782888645000,-3094.12095063,0.00017586,2]
[426818235,1782888645000,-1050.6607357,0.00017586,2]
[426818254,1782888646000,-1526.12495172,0.000188,2]
[426818255,1782888646000,-53107.844573,0.0001881,2]
[426818253,1782888646000,-437.08921415,0.00018668,2]
[426818251,1782888646000,-1500.0,0.00018518,2]
[426818248,1782888646000,-1526.12495172,0.000182,2]
[426818250,1782888646000,-186.8,0.0001841,2]
[426818256,1782888646000,-3651.0,0.0001887,2]
[426818247,1782888646000,-285.05513885,0.00018046,2]
[426818244,1782888646000,-1500.0,0.0001797,2]
[426818245,1782888646000,-168.56,0.00017978,2]
[426818246,1782888646000,-1526.12495172,0.00018,2]
[426818239,1782888646000,-1822.49447248,0.00017586,2]
[426818242,1782888646000,-28080.77663089,0.00017586,2]
[426818249,1782888646000,-1526.12495172,0.000184,2]
[426818258,1782888646000,-150.0,0.00018915,2]
[426818252,1782888646000,-1526.12495172,0.000186,2]
[426818257,1782888646000,-6089.0,0.0001887,2]
[426818272,1782888646000,-2337.0,0.0001951,2]
[426818273,1782888646000,-876.36832559,0.000197,2]
[426818269,1782888646000,-463.65434913,0.000194,2]
[426818270,1782888646000,-1526.12495172,0.000195,2]
[426818267,1782888646000,-1526.12495172,0.000193,2]
[426818268,1782888646000,-160.0,0.0001936,2]
[426818265,1782888646000,-1526.12495172,0.000192,2]
[426818259,1782888646000,-269.29239001,0.00018931,2]
[426818266,1782888646000,-200.0,0.00019203,2]
[426818260,1782888646000,-151.0,0.0001897,2]
[426818263,1782888646000,-195.0,0.00019008,2]
[426818271,1782888646000,-2337.0,0.0001951,2]
[426818262,1782888646000,-1526.12495172,0.00019,2]
[426818264,1782888646000,-1589.65626326,0.00019066,2]
[426818261,1782888646000,-231.12,0.00018976,2]
[426818274,1782888715000,336.81,0.0002863,30]
[426818278,1782888716000,165.91,0.0002976,30]
[426818277,1782888716000,238.31,0.0002863,30]
[426818276,1782888716000,336.81,0.00029132,30]
[426818275,1782888716000,165.91,0.0002863,30]
[426818280,1782888717000,238.31,0.00029132,30]
[426818279,1782888717000,336.81,0.00029634,30]
[426818282,1782888718000,238.31,0.00029634,30]
[426818281,1782888718000,336.81,0.00030136,30]
[426818284,1782888761000,170.62,0.0002863,30]
[426818285,1782888762000,500.0,0.00030136,30]
[426818286,1782888806000,165.97,0.0002863,30]
[426818288,1782888807000,165.97,0.00029383,30]
[426818287,1782888807000,50000.0,0.00030137,37]
[426818289,1782888817000,50000.0,0.00030137,39]
[426818290,1782888822000,50000.0,0.00030137,40]
[426818292,1782888849000,50000.0,0.00030137,41]
[426818294,1782888851000,151.61,0.00029275,30]
[426818293,1782888851000,151.61,0.0002863,30]
[426818295,1782888868000,172.75,0.0002863,30]
[426818296,1782888914000,169.61,0.0002863,30]
[426818297,1782888988000,162.41,0.0002863,30]
[426818298,1782889067000,162.3,0.0002863,30]
[426818299,1782889121000,166.74,0.0002863,30]
[426818300,1782889143000,155.0,0.00028511,30]
[426818301,1782889144000,155.0,0.00029511,30]
[426818302,1782889165000,165.29,0.0002863,30]
[426818304,1782889210000,164.33,0.0002863,30]
[426818305,1782889255000,163.32,0.0002863,30]
[426818307,1782889333000,165.03,0.0002863,30]
[426818309,1782889364000,174.0,0.00028511,30]
[426818310,1782889366000,174.0,0.00029511,30]
[426818311,1782889397000,164.33,0.0002863,30]
[426818313,1782889474000,165.04,0.0002863,30]
[426818318,1782889740000,2000.0,0.00030136,37]
[426818319,1782889741000,2000.0,0.00030136,39]
[426818320,1782889743000,2000.0,0.00030136,40]
[426818321,1782889743000,2000.0,0.00030136,41]
[426818323,1782889744000,2000.0,0.00030129,120]
[426818324,1782889744000,2000.0,0.00028488,60]
[426818322,1782889744000,2000.0,0.00030135,30]
[426818342,1782889831000,-150.0,0.0001587,2]
[426818339,1782889831000,-150.0,0.0001587,2]
[426818341,1782889831000,-151.0,0.0001587,2]
[426818348,1782889831000,-500.0,0.00016438,2]
[426818338,1782889831000,-151.0,0.0001587,2]
[426818344,1782889831000,-64.13139679,0.0001587,2]
[426818337,1782889831000,-53.47621935,0.0001587,2]
[426818335,1782889831000,-97.52378065,0.0001587,2]
[426818334,1782889831000,-151.0,0.0001587,2]
[426818333,1782889831000,-230.55,0.00014859,2]
[426818340,1782889831000,-152.0,0.0001587,2]
[426818343,1782889831000,-88.86860321,0.0001587,2]
[426818345,1782889831000,-3651.0,0.00015949,2]
[426818350,1782889831000,-500.0,0.00016438,2]
[426818360,1782889831000,-443.99850321,0.00016438,2]
[426818346,1782889831000,-500.0,0.00016438,2]
[426818351,1782889831000,-500.0,0.00016438,2]
[426818357,1782889831000,-500.0,0.00016438,2]
[426818354,1782889831000,-500.0,0.00016438,2]
[426818359,1782889831000,-500.0,0.00016438,2]
[426818347,1782889831000,-500.0,0.00016438,2]
[426818358,1782889831000,-500.0,0.00016438,2]
[426818352,1782889831000,-500.0,0.00016438,2]
[426818356,1782889831000,-500.0,0.00016438,2]
[426818355,1782889831000,-500.0,0.00016438,2]
[426818349,1782889831000,-500.0,0.00016438,2]
[426818353,1782889831000,-500.0,0.00016438,2]
[426818361,1782889832000,-56.00149679,0.00016438,2]
[426818362,1782889832000,-500.0,0.00016438,2]
[426818363,1782889832000,-163.05221883,0.00016438,2]
[426818366,1782889832000,-336.94778117,0.00016438,2]
[426818370,1782889832000,-56.46465805,0.00016438,2]
[426818368,1782889832000,-443.53534195,0.00016438,2]
[426818375,1782889832000,-57.3731233,0.00016438,2]
[426818382,1782889832000,-500.0,0.00016438,2]
[426818377,1782889832000,-435.48159527,0.00016438,2]
[426818390,1782889832000,-601.96309115,0.00016438,2]
[426818373,1782889832000,-442.6268767,0.00016438,2]
[426818380,1782889832000,-64.51840473,0.00016438,2]
[426818399,1782889832000,-171.3,0.00016438,2]
[426818397,1782889832000,-500.0,0.00016438,2]
[426818395,1782889832000,-500.0,0.00016438,2]
[426818401,1782889832000,-83.326718,0.00016438,2]
[426818386,1782889832000,-500.0,0.00016438,2]
[426818393,1782889832000,-500.0,0.00016438,2]
[426818392,1782889832000,-500.0,0.00016438,2]
[426818384,1782889832000,-500.0,0.00016438,2]
[426818388,1782889832000,-500.0,0.00016438,2]
[426818443,1782889838000,-162.43915653,0.00018,2]
[426818440,1782889838000,-171.67,0.00016712,2]
[426818441,1782889838000,-274.03175569,0.00017072,2]
[426818442,1782889838000,-152.0,0.00017586,2]
[426818445,1782889838000,-635.5089091,0.00018165,2]
[426818444,1782889838000,-12137.16,0.00018107,2]
[426818452,1782889838000,-171.3,0.0001841,2]
[426818454,1782889838000,-162.43915653,0.000185,2]
[426818448,1782889838000,-207.2,0.00018226,2]
[426818450,1782889838000,-162.43915653,0.000183,2]
[426818446,1782889838000,-162.43915653,0.000182,2]
[426818447,1782889838000,-1736.21,0.00018218,2]
[426818439,1782889838000,-160.0,0.00016538,2]
[426818455,1782889838000,-250.5196419,0.00018531,2]
[426818456,1782889838000,-166.66,0.00018596,2]
[426818460,1782889838000,-209.13207449,0.00018662,2]
[426818453,1782889838000,-1375.96,0.00018427,2]
[426818437,1782889838000,-500.0,0.00016438,2]
[426818432,1782889838000,-500.0,0.00016438,2]
[426818436,1782889838000,-500.0,0.00016438,2]
[426818419,1782889838000,-416.673282,0.00016438,2]
[426818418,1782889838000,-216.0,0.00015949,2]
[426818427,1782889838000,-500.0,0.00016438,2]
[426818429,1782889838000,-500.0,0.00016438,2]
[426818421,1782889838000,-500.0,0.00016438,2]
[426818420,1782889838000,-500.0,0.00016438,2]
[426818428,1782889838000,-500.0,0.00016438,2]
[426818422,1782889838000,-500.0,0.00016438,2]
[426818438,1782889838000,-500.0,0.00016438,2]
[426818425,1782889838000,-500.0,0.00016438,2]
[426818424,1782889838000,-500.0,0.00016438,2]
[426818423,1782889838000,-500.0,0.00016438,2]
[426818431,1782889838000,-500.0,0.00016438,2]
[426818430,1782889838000,-500.0,0.00016438,2]
[426818433,1782889838000,-500.0,0.00016438,2]
[426818462,1782889838000,-216.0,0.00018949,2]
[426818434,1782889838000,-500.0,0.00016438,2]
[426818435,1782889838000,-500.0,0.00016438,2]
[426818426,1782889838000,-265.28109263,0.00016438,2]
[426818463,1782889838000,-644.82,0.0001897,2]
[426818458,1782889838000,-459.60419626,0.00018662,2]
[426818464,1782889838000,-249.0,0.00019452,2]
[426818488,1782889838000,-160.0,0.0002,2]
[426818485,1782889838000,-152.0,0.0002,2]
[426818483,1782889838000,-4108.18285715,0.0002,2]
[426818487,1782889838000,-1286.44185965,0.0002,2]
[426818494,1782889838000,-522.79710078,0.00020262,2]
[426818492,1782889838000,-249.0,0.00020136,2]
[426818489,1782889838000,-174.0,0.0002,2]
[426818495,1782889838000,-271.0,0.00020279,2]
[426818490,1782889838000,-3121.0,0.0002,2]
[426818493,1782889838000,-1286.44185965,0.000202,2]
[426818499,1782889838000,-1286.44185965,0.000204,2]
[426818498,1782889838000,-171.3,0.00020381,2]
[426818491,1782889838000,-152.0,0.00020075,10]
[426818497,1782889838000,-522.79710078,0.00020343,2]
[426818496,1782889838000,-612.23697484,0.000203,2]
[426818501,1782889838000,-7547.62891568,0.00020548,2]
[426818500,1782889838000,-522.79710078,0.00020527,2]
[426818484,1782889838000,-12225.72920725,0.0002,2]
[426818457,1782889838000,-183.51803918,0.00018662,2]
[426818486,1782889838000,-214.63,0.0002,2]
[426818480,1782889838000,-510.1943185,0.0002,10]
[426818459,1782889838000,-200.41541372,0.00018662,2]
[426818466,1782889838000,-181.0,0.00019499,2]
[426818465,1782889838000,-280.535654,0.00019452,2]
[426818461,1782889838000,-3651.0,0.00018949,2]
[426818467,1782889838000,-200.0,0.00019592,2]
[426818469,1782889838000,-20000.0,0.000196,2]
[426818470,1782889838000,-527.4814,0.000197,2]
[426818482,1782889838000,-77233.93645644,0.0002,2]
[426818477,1782889838000,-6763.77062658,0.000199,2]
[426818476,1782889838000,-257.41851398,0.00019899,2]
[426818468,1782889838000,-35461.22,0.000196,2]
[426818472,1782889838000,-397.36,0.00019794,2]
[426818475,1782889838000,-586.14956433,0.00019899,2]
[426818473,1782889838000,-226.82,0.00019794,2]
[426818474,1782889838000,-161.78865445,0.00019798,2]
[426818479,1782889838000,-8000.0,0.00019998,3]
[426818478,1782889838000,-2500.0,0.000199,2]
[426818481,1782889838000,-177.79,0.0002,2]
[426818471,1782889838000,-2167.358,0.00019792,2]
[426818503,1782889839000,-1886.42365071,0.00020548,2]
[426818506,1782889839000,-522.79710078,0.00020573,2]
[426818505,1782889839000,-3.2805009,0.00020548,2]
[426818502,1782889839000,-777.2934415,0.00020548,2]
[426818507,1782889839000,-152.0,0.00020578,11]
[426818509,1782889839000,-76.00863048,0.0002058,2]
[426818504,1782889839000,-1170.77349121,0.00020548,2]
[426818508,1782889839000,-150.0,0.0002058,2]
[426818511,1782889840000,-73.99136952,0.0002058,2]
[426818512,1782889840000,-150.0,0.0002058,2]
[426818513,1782889840000,-150.0,0.0002058,2]
[426818514,1782889840000,-178.30068043,0.0002058,2]
[426818515,1782889840000,-160.0,0.00020592,2]
[426818517,1782889840000,-151.0,0.00020613,2]
[426818516,1782889840000,-1286.44185965,0.000206,2]
[426818518,1782889840000,-151.0,0.00020613,2]
[426818523,1782889840000,-151.0,0.00020613,2]
[426818521,1782889840000,-151.0,0.00020613,2]
[426818526,1782889840000,-500.0,0.00020699,2]
[426818522,1782889840000,-151.0,0.00020613,2]
[426818525,1782889840000,-500.0,0.00020699,2]
[426818529,1782889840000,-6267.841131,0.000207,2]
[426818527,1782889840000,-335.69369789,0.00020699,2]
[426818528,1782889840000,-500.0,0.00020699,2]
[426818524,1782889840000,-6763.77062652,0.00020656,2]
[426818520,1782889840000,-151.35,0.00020613,2]
[426818519,1782889840000,-151.0,0.00020613,2]
[426818543,1782889842000,-1208.68179918,0.000207,2]
[426818544,1782889842000,-742.5,0.000207,2]
[426818547,1782889843000,-9167.64423464,0.000207,2]
[426818548,1782889843000,-770.25661595,0.000207,2]
[426818549,1782889843000,-1009.41,0.000207,2]
[426818566,1782889846000,-3329.89845945,0.000207,2]
[426818568,1782889846000,-160.0,0.0002072,2]
[426818570,1782889846000,-160.0,0.0002088,2]
[426818571,1782889846000,-171.0,0.0002088,2]
[426818572,1782889846000,-522.79710078,0.00020908,2]
[426818576,1782889846000,-14782.29764786,0.00021,2]
[426818573,1782889846000,-522.79710078,0.00020911,2]
[426818575,1782889846000,-522.79710078,0.00020978,2]
[426818574,1782889846000,-522.79710078,0.00020938,2]
[426818577,1782889846000,-3290.42,0.00021,2]
[426818569,1782889846000,-1286.44185965,0.000208,2]
[426818567,1782889846000,-160.0,0.0002072,2]
[426818590,1782889923000,500.0,0.000301,30]
[426818592,1782890218000,155.0,0.00028511,30]
[426818593,1782890220000,155.0,0.00029511,30]
[426818594,1782890420000,155.0,0.0002851,30]
[426818595,1782890421000,155.0,0.0002951,30]
[426818597,1782890630000,553.54,0.000301,30]
[426818598,1782890712000,500.0,0.000301,30]
[426818599,1782890730000,500.0,0.000301,30]
[426818600,1782890747000,500.0,0.000301,30]
[426818601,1782890768000,500.0,0.000301,30]
[426818602,1782890778000,500.0,0.000301,30]
[426818603,1782890791000,500.0,0.000301,30]
[426818604,1782890813000,500.0,0.000301,30]
[426818605,1782890824000,686.0,0.000301,30]
[426818606,1782890839000,700.0,0.000301,30]
[426818607,1782890848000,600.0,0.000301,30]
[426818608,1782890856000,700.0,0.000301,30]
[426818609,1782890864000,600.0,0.000301,30]
[426818610,1782890940000,2000.0,0.00030135,37]
[426818614,1782890941000,2000.0,0.00030134,30]
[426818613,1782890941000,2000.0,0.00030135,41]
[426818612,1782890941000,2000.0,0.00030135,40]
[426818611,1782890941000,2000.0,0.00030135,39]
[426818615,1782890942000,2000.0,0.00030128,120]
[426818616,1782890942000,2000.0,0.00028487,60]
[426818619,1782891032000,-207.5,0.00014859,2]
[426818622,1782891032000,-152.0,0.00016429,2]
[426818620,1782891032000,-204.60761206,0.00016329,2]
[426818621,1782891032000,-151.0,0.00016429,2]
[426818625,1782891032000,-150.0,0.00016429,2]
[426818623,1782891032000,-151.0,0.00016429,2]
[426818630,1782891032000,-44.14793453,0.00016529,2]
[426818626,1782891032000,-150.0,0.00016429,2]
[426818624,1782891032000,-152.0,0.00016429,2]
[426818628,1782891032000,-105.85206547,0.00016529,2]
[426818634,1782891032000,-147.85206547,0.00016529,2]
[426818632,1782891032000,-152.0,0.00016529,2]
[426818643,1782891032000,-151.0,0.00016529,2]
[426818641,1782891032000,-150.0,0.00016529,2]
[426818661,1782891032000,-500.0,0.00016628,2]
[426818639,1782891032000,-150.0,0.00016529,2]
[426818653,1782891032000,-151.0,0.00016529,2]
[426818659,1782891032000,-500.0,0.00016628,2]
[426818648,1782891032000,-151.0,0.00016529,2]
[426818664,1782891032000,-177.5329217,0.00016628,2]
[426818657,1782891032000,-500.0,0.00016628,2]
[426818650,1782891032000,-151.0,0.00016529,2]
[426818646,1782891032000,-151.0,0.00016529,2]
[426818637,1782891032000,-2.14793453,0.00016529,2]
[426818655,1782891032000,-152.0,0.00016529,2]
[426818681,1782891040000,-322.4670783,0.00016628,2]
[426818682,1782891040000,-436.72441838,0.00016628,2]
[426818683,1782891040000,-1000.0,0.00016629,2]
[426818688,1782891040000,-152.0,0.00016629,2]
[426818693,1782891040000,-151.0,0.00016629,2]
[426818686,1782891040000,-1000.0,0.00016629,2]
[426818685,1782891040000,-1000.0,0.00016629,2]
[426818689,1782891040000,-150.0,0.00016629,2]
[426818692,1782891040000,-151.0,0.00016629,2]
[426818694,1782891040000,-152.0,0.00016629,2]
[426818697,1782891040000,-151.0,0.00016629,2]
[426818698,1782891040000,-1521.92746593,0.00016629,2]
[426818695,1782891040000,-153.0,0.00016629,2]
[426818691,1782891040000,-151.0,0.00016629,2]
[426818684,1782891040000,-1000.0,0.00016629,2]
[426818687,1782891040000,-163.89,0.00016629,2]
[426818690,1782891040000,-151.0,0.00016629,2]
[426818696,1782891040000,-152.0,0.00016629,2]
[426818709,1782891042000,-24.22729673,0.00016712,2]
[426818708,1782891042000,-582.78561672,0.00016629,2]
[426818705,1782891042000,-283.23121473,0.00016629,2]
[426818706,1782891042000,-1263.05570262,0.00016629,2]
[426818714,1782891043000,-146.52945973,0.00017829,2]
[426818713,1782891043000,-151.0,0.00017829,2]
[426818711,1782891043000,-147.46270327,0.00016712,2]
[426818712,1782891043000,-151.0,0.00017729,2]
[426818716,1782891046000,-5.47054027,0.00017829,2]
[426818719,1782891046000,-61.77936663,0.00017871,2]
[426818721,1782891046000,-1500.0,0.00018596,2]
[426818717,1782891046000,-153.0,0.00017829,2]
[426818722,1782891046000,-160.0,0.000189,2]
[426818720,1782891046000,-152.0,0.00018019,3]
[426818724,1782891046000,-2337.0,0.00019274,2]
[426818718,1782891046000,-162.26695973,0.00017871,2]
[426818723,1782891046000,-152.0,0.00019068,4]
[426818725,1782891046000,-1516.82063337,0.000194,2]
[426818726,1782891164000,500.0,0.00030136,30]
[426818729,1782891269000,155.0,0.0002851,30]
[426818730,1782891270000,155.0,0.0002951,30]
[426818731,1782891471000,155.0,0.0002851,30]
[426818732,1782891472000,155.0,0.0002951,30]
[426818734,1782891840000,2500.0,0.00030136,30]
[426818735,1782891863000,2500.0,0.00030136,30]
[426818736,1782891872000,2500.0,0.00030136,30]
[426818737,1782891888000,500.0,0.00030136,30]
[426818739,1782891918000,173.0,0.00030136,30]
[426818740,1782892020000,10000.0,0.00030137,30]
[426818744,1782892140000,2000.0,0.00030134,40]
[426818743,1782892140000,2000.0,0.00030134,39]
[426818742,1782892140000,2000.0,0.00030134,37]
[426818741,1782892140000,2000.0,0.00030136,30]
[426818747,1782892141000,2000.0,0.00028486,60]
[426818746,1782892141000,2000.0,0.00030127,120]
[426818745,1782892141000,2000.0,0.00030134,41]
[426818748,1782892188000,160.0,0.0002851,30]
[426818749,1782892190000,160.0,0.0002951,30]
[426818750,1782892198000,160.0,0.00011975,2]
[426818751,1782892199000,160.0,0.00012975,2]
[426818784,1782892232000,-151.0,0.00016628,2]
[426818779,1782892232000,-121.67809344,0.00016628,2]
[426818781,1782892232000,-151.0,0.00016628,2]
[426818786,1782892232000,-9.85774726,0.00016628,2]
[426818782,1782892232000,-152.0,0.00016628,2]
[426818789,1782892232000,-151.0,0.00016628,2]
[426818787,1782892232000,-152.0,0.00016628,2]
[426818790,1782892232000,-151.0,0.00016628,2]
[426818792,1782892232000,-150.0,0.00016628,2]
[426818816,1782892232000,-500.0,0.00017064,2]
[426818794,1782892232000,-34.01029987,0.00016628,2]
[426818796,1782892232000,-151.0,0.00016628,2]
[426818797,1782892232000,-161.39947715,0.00016975,2]
[426818795,1782892232000,-116.98970013,0.00016628,2]
[426818799,1782892232000,-477.34131821,0.00017064,2]
[426818791,1782892232000,-151.0,0.00016628,2]
[426818798,1782892232000,-22.65868179,0.00017064,2]
[426818800,1782892232000,-500.0,0.00017064,2]
[426818801,1782892232000,-71.44460214,0.00017064,2]
[426818780,1782892232000,-153.0,0.00016628,2]
[426818793,1782892232000,-151.0,0.00016628,2]
[426818783,1782892232000,-151.0,0.00016628,2]
[426818785,1782892232000,-142.14225274,0.00016628,2]
[426818762,1782892232000,-250.0,0.00015464,2]
[426818763,1782892232000,-150.0,0.00015624,2]
[426818765,1782892232000,-160.0,0.00015975,2]
[426818760,1782892232000,-186.75,0.00014859,2]
[426818759,1782892232000,-160.0,0.00013975,2]
[426818767,1782892232000,-54.08921283,0.00016345,2]
[426818766,1782892232000,-195.91078717,0.00016345,2]
[426818761,1782892232000,-160.0,0.00014975,2]
[426818764,1782892232000,-154.0,0.00015778,2]
[426818768,1782892232000,-193.61668233,0.00016345,2]
[426818770,1782892232000,-500.0,0.00016345,2]
[426818777,1782892232000,-151.0,0.00016628,2]
[426818778,1782892232000,-28.32190656,0.00016628,2]
[426818772,1782892232000,-30.32190656,0.00016627,2]
[426818774,1782892232000,-150.0,0.00016628,2]
[426818769,1782892232000,-250.0,0.00016345,2]
[426818773,1782892232000,-519.67809344,0.00016627,2]
[426818776,1782892232000,-150.0,0.00016628,2]
[426818775,1782892232000,-151.0,0.00016628,2]
[426818788,1782892232000,-153.0,0.00016628,2]
[426818814,1782892232000,-500.0,0.00017064,2]
[426818771,1782892232000,-226.06505133,0.00016345,2]
[426818806,1782892232000,-500.0,0.00017064,2]
[426818846,1782892232000,-2608.03171419,0.00018533,2]
[426818849,1782892232000,-5572.63274602,0.00018533,2]
[426818853,1782892232000,-207.76,0.00018969,2]
[426818852,1782892232000,-151.0,0.00018969,2]
[426818870,1782892232000,-185.33,0.00019791,2]
[426818856,1782892232000,-153.21,0.00018969,2]
[426818855,1782892232000,-151.0,0.00018969,2]
[426818857,1782892232000,-151.0,0.00018969,2]
[426818858,1782892232000,-482.69,0.00018969,2]
[426818845,1782892232000,-9179.29828581,0.00018533,2]
[426818860,1782892232000,-833.17936663,0.000194,2]
[426818863,1782892232000,-2337.0,0.0001954,2]
[426818861,1782892232000,-2337.0,0.000194,2]
[426818865,1782892232000,-150.0,0.00019691,2]
[426818862,1782892232000,-13947.8295,0.0001944,2]
[426818866,1782892232000,-200.0,0.00019691,2]
[426818868,1782892232000,-156.76485751,0.00019697,2]
[426818867,1782892232000,-50.43514249,0.00019697,2]
[426818869,1782892232000,-573.97,0.00019791,2]